[Event "4NCL 2019-20"]
[Site "Daventry"]
[Date "2020.02.09"]
[Round "6"]
[White "Greet, Andrew N"]
[Black "Paehtz, Elisabeth"]
[Result "0-1"]
[ECO "E62"]
[WhiteElo "2425"]
[BlackElo "2467"]
[Annotator "ChessBase"]
[PlyCount "60"]
[EventDate "2020.01.11"]
[EventCountry "ENG"]
[SourceTitle "playchess.com"]
[Source "ChessBase"]
[SourceQuality "1"]
[TimeControl "40/6000:3000+30"]

1. d4 {[%emt 0:00:00]} Nf6 {[%emt 0:00:00]} 2. c4 {[%emt 0:00:00]} g6 {[%emt 0:00:00]} 3. g3 {[%emt 0:00:00]} Bg7 {[%emt 0:00:00]} 4. Bg2 {[%emt 0:00:00]} O-O {[%emt 0:00:00]} 5. Nc3 {[%emt 0:00:00]} d6 {[%emt 0:00:00]} 6. Nf3 {[%emt 0:00:00]} Nc6 {[%emt 0:00:00]} 7. O-O {[%emt 0:00:00]} e5 {[%emt 0:00:00]} 8. d5 {[%emt 0:00:00]} Nb8 {[%emt 0:00:00]} 9. Ne1 {[%emt 0:00:00]} a5 {[%emt 0:00:00]} 10. a3 {[%emt 0:02:40]} Nbd7 {[%emt 0:16:33]} 11. Nd3 {[%emt 0:06:33]} Nb6 {[%emt 0:00:07]} 12. c5 {[%emt 0:13:43]} dxc5 {[%emt 0:00:00]} 13. Nxc5 {[%emt 0:00:00]} Qe7 {[%emt 0:00:00]} 14. N5e4 {[%emt 0:06:29]} Nxe4 {[%emt 0:06:04]} 15. Nxe4 {[%emt 0:00:00]} f5 {[%emt 0:00:00]} 16. d6 {[%emt 0:09:41]} cxd6 {[%emt 0:00:33]} 17. Qxd6 {[%emt 0:01:15]} Qxd6 {[%emt 0:01:50]} 18. Nxd6 {[%emt 0:00:00]} Be6 {[%emt 0:03:55]} 19. Nxb7 {[%emt 0:01:58]} e4 {[%emt 0:00:07]} 20. a4 {[%emt 0:28:47]} Rfb8 {[%emt 0:34:36]} 21. Nd6 {[%emt 0:05:49]} Bb3 {[%emt 0:01:04]} 22. f3 {[%emt 0:12:12]} Be5 {[%emt 0:03:08]} 23. Ra3 {[%emt 0:00:45]} Nxa4 {[%emt 0:02:48]} 24. Nc8 {[%emt 0:00:00]} Bd4+ {[%emt 0:00:36]} 25. Kh1 {[%emt 0:01:52]} Bc5 {[%emt 0:00:00]} 26. Bf4 {[%emt 0:01:15]} Bxa3 {[%emt 0:00:00]} 27. Bxb8 {[%emt 0:00:00]} Rxb8 {[%emt 0:01:35]} 28. Na7 {[%emt 0:00:19]} Bxb2 {[%emt 0:00:37]} 29. fxe4 {[%emt 0:00:00]} fxe4 {[%emt 0:00:44]} 30. Nc6 {[%emt 0:01:34]} Rf8 {[%emt 0:01:12]} 0-1

[Event "4NCL 2019-20"]
[Site "Daventry"]
[Date "2020.02.09"]
[Round "6"]
[White "Palliser, Richard J D"]
[Black "Griffiths, Ryan Rhys"]
[Result "1-0"]
[ECO "D30"]
[WhiteElo "2399"]
[BlackElo "2354"]
[Annotator "ChessBase"]
[PlyCount "81"]
[EventDate "2020.01.11"]
[EventCountry "ENG"]
[SourceTitle "playchess.com"]
[Source "ChessBase"]
[SourceQuality "1"]
[TimeControl "40/6000:3000+30"]

1. d4 {[%emt 0:00:06]} Nf6 {[%emt 0:00:00]} 2. c4 {[%emt 0:00:00]} e6 {[%emt 0:00:00]} 3. Nf3 {[%emt 0:00:00]} c6 {[%emt 0:00:00]} 4. Bf4 {[%emt 0:05:05]} d5 {[%emt 0:00:00]} 5. e3 {[%emt 0:01:06]} Bd6 {[%emt 0:00:50]} 6. Bxd6 {[%emt 0:14:25]} Qxd6 {[%emt 0:00:00]} 7. c5 {[%emt 0:00:00]} Qe7 {[%emt 0:00:00]} 8. Nc3 {[%emt 0:01:42]} Nbd7 {[%emt 0:00:00]} 9. Be2 {[%emt 0:00:51]} O-O {[%emt 0:00:00]} 10. O-O {[%emt 0:03:41]} e5 {[%emt 0:00:00]} 11. b4 {[%emt 0:04:37]} e4 {[%emt 0:01:36]} 12. Nd2 {[%emt 0:00:00]} Ne8 {[%emt 0:00:00]} 13. b5 {[%emt 0:00:09]} f5 {[%emt 0:00:00]} 14. bxc6 {[%emt 0:05:00]} bxc6 {[%emt 0:00:00]} 15. Qa4 {[%emt 0:00:00]} Rf6 {[%emt 0:01:15]} 16. Ba6 {[%emt 0:08:36]} Rh6 {[%emt 0:31:36]} 17. Bxc8 {[%emt 0:08:11]} Rxc8 {[%emt 0:03:13]} 18. Qxa7 {[%emt 0:03:07]} Qh4 {[%emt 0:00:42]} 19. h3 {[%emt 0:00:00]} Rc7 {[%emt 0:12:16]} 20. Qa8 {[%emt 0:01:18]} Ndf6 {[%emt 0:06:24]} 21. Ne2 {[%emt 0:16:36]} Qh5 {[%emt 0:00:28]} 22. Ng3 {[%emt 0:02:09]} Qg5 {[%emt 0:00:00]} 23. Rfb1 {[%emt 0:06:37]} f4 {[%emt 0:00:00]} 24. exf4 {[%emt 0:00:22]} Qxf4 {[%emt 0:00:00]} 25. Ndf1 {[%emt 0:02:06]} Rf7 {[%emt 0:00:00]} 26. Qb8 {[%emt 0:04:03]} Qg5 {[%emt 0:01:05]} 27. a4 {[%emt 0:02:23]} Rg6 {[%emt 0:02:05]} 28. a5 {[%emt 0:00:29]} h5 {[%emt 0:04:38]} 29. Qe5 {[%emt 0:02:09]} h4 {[%emt 0:00:00]} 30. Qxg5 {[%emt 0:00:00]} Rxg5 {[%emt 0:00:00]} 31. Ne2 {[%emt 0:00:00]} Ra7 {[%emt 0:08:25]} 32. Rb6 {[%emt 0:00:00]} Nc7 {[%emt 0:00:00]} 33. Rxc6 {[%emt 0:00:00]} Kf7 {[%emt 0:00:14]} 34. Ne3 {[%emt 0:00:00]} Rh5 {[%emt 0:00:00]} 35. Nf4 {[%emt 0:02:46]} Rh8 {[%emt 0:00:00]} 36. Nf5 {[%emt 0:00:42]} Rha8 {[%emt 0:00:15]} 37. Nd6+ {[%emt 0:00:00]} Ke7 {[%emt 0:00:00]} 38. Ng6+ {[%emt 0:00:00]} Kd7 {[%emt 0:00:00]} 39. Ne5+ {[%emt 0:00:00]} Kd8 {[%emt 0:00:00]} 40. Rb6 {[%emt 0:00:00]} Ra6 {[%emt 0:00:00]} 41. Rab1 {[%emt 0:50:28]} 1-0

[Event "4NCL 2019-20"]
[Site "Daventry"]
[Date "2020.02.09"]
[Round "6"]
[White "Eggleston, David J"]
[Black "Dong, Bao Nghia"]
[Result "0-1"]
[ECO "C10"]
[WhiteElo "2396"]
[BlackElo "2209"]
[Annotator "ChessBase"]
[PlyCount "131"]
[EventDate "2020.01.11"]
[EventCountry "ENG"]
[SourceTitle "playchess.com"]
[Source "ChessBase"]
[SourceQuality "1"]
[TimeControl "40/6000:3000+30"]

1. e4 {[%emt 0:00:00]} e6 {[%emt 0:00:09]} 2. d4 {[%emt 0:00:11]} d5 {[%emt 0:00:00]} 3. Nc3 {[%emt 0:00:00]} dxe4 {[%emt 0:00:00]} 4. Nxe4 {[%emt 0:00:00]} Bd7 {[%emt 0:00:00]} 5. Nf3 {[%emt 0:00:00]} Bc6 {[%emt 0:00:00]} 6. Bd3 {[%emt 0:00:00]} Nd7 {[%emt 0:00:00]} 7. O-O {[%emt 0:00:00]} Ngf6 {[%emt 0:00:00]} 8. Ng3 {[%emt 0:01:22]} g6 {[%emt 0:00:00]} 9. Qe2 {[%emt 0:06:22]} Bg7 {[%emt 0:00:42]} 10. Ne5 {[%emt 0:01:13]} Nxe5 {[%emt 0:00:09]} 11. dxe5 {[%emt 0:00:00]} Nd5 {[%emt 0:00:24]} 12. a3 {[%emt 0:03:41]} Qh4 {[%emt 0:08:02]} 13. f4 {[%emt 0:01:27]} a5 {[%emt 0:07:41]} 14. Ne4 {[%emt 0:05:24]} Ne7 {[%emt 0:06:19]} 15. Ng5 {[%emt 0:36:00]} Nf5 {[%emt 0:01:33]} 16. Bb5 {[%emt 0:00:00]} Nd4 {[%emt 0:15:00]} 17. Bxc6+ {[%emt 0:00:00]} Nxc6 {[%emt 0:00:00]} 18. g3 {[%emt 0:15:38]} Qh5 {[%emt 0:00:00]} 19. Qxh5 {[%emt 0:01:59]} gxh5 {[%emt 0:00:00]} 20. f5 {[%emt 0:05:34]} exf5 {[%emt 0:14:20]} 21. Rxf5 {[%emt 0:00:04]} Bxe5 {[%emt 0:00:00]} 22. Nxf7 {[%emt 0:04:37]} Bd4+ {[%emt 0:00:00]} 23. Kg2 {[%emt 0:00:00]} Rf8 {[%emt 0:00:00]} 24. Nh6 {[%emt 0:01:16]} O-O-O {[%emt 0:00:00]} 25. c3 {[%emt 0:01:28]} Bb6 {[%emt 0:00:25]} 26. Bg5 {[%emt 0:01:22]} Rxf5 {[%emt 0:00:09]} 27. Nxf5 {[%emt 0:00:00]} Rd5 {[%emt 0:00:00]} 28. Rf1 {[%emt 0:00:00]} Re5 {[%emt 0:00:00]} 29. Kh3 {[%emt 0:03:34]} Re2 {[%emt 0:00:00]} 30. Ng7 {[%emt 0:00:58]} Ne5 {[%emt 0:02:06]} 31. Nxh5 {[%emt 0:00:24]} Rxb2 {[%emt 0:00:22]} 32. Nf6 {[%emt 0:01:02]} Bc5 {[%emt 0:00:20]} 33. a4 {[%emt 0:01:57]} b5 {[%emt 0:00:00]} 34. Ne4 {[%emt 0:01:01]} Bb6 {[%emt 0:00:51]} 35. axb5 {[%emt 0:00:00]} h5 {[%emt 0:03:35]} 36. Nf6 {[%emt 0:00:25]} Rxb5 {[%emt 0:01:39]} 37. Rf5 {[%emt 0:01:42]} c6 {[%emt 0:00:00]} 38. Ne4 {[%emt 0:00:48]} Nc4 {[%emt 0:00:42]} 39. Rf8+ {[%emt 0:00:00]} Kb7 {[%emt 0:00:47]} 40. Rf7+ {[%emt 0:00:00]} Ka6 {[%emt 0:00:00]} 41. Rf6 {[%emt 0:13:18]} Re5 {[%emt 0:01:10]} 42. Nd2 {[%emt 0:03:05]} Nxd2 {[%emt 0:00:16]} 43. Bxd2 {[%emt 0:00:05]} Re2 {[%emt 0:00:04]} 44. Bf4 {[%emt 0:07:53]} a4 {[%emt 0:03:10]} 45. Bd6 {[%emt 0:00:04]} Kb5 {[%emt 0:00:47]} 46. Ba3 {[%emt 0:03:28]} Bg1 {[%emt 0:00:11]} 47. Kh4 {[%emt 0:02:44]} Rxh2+ {[%emt 0:00:38]} 48. Kg5 {[%emt 0:00:05]} Be3+ {[%emt 0:00:47]} 49. Kg6 {[%emt 0:00:10]} c5 {[%emt 0:00:10]} 50. Rf3 {[%emt 0:02:41]} Re2 {[%emt 0:01:34]} 51. c4+ {[%emt 0:11:21]} Kxc4 {[%emt 0:00:32]} 52. Kxh5 {[%emt 0:00:03]} Bd4 {[%emt 0:01:50]} 53. g4 {[%emt 0:00:18]} Re3 {[%emt 0:00:20]} 54. Rxe3 {[%emt 0:00:33]} Bxe3 {[%emt 0:00:05]} 55. g5 {[%emt 0:00:08]} Bd4 {[%emt 0:00:18]} 56. g6 {[%emt 0:01:04]} Kd5 {[%emt 0:00:09]} 57. Kg4 {[%emt 0:06:06]} c4 {[%emt 0:00:13]} 58. Kf3 {[%emt 0:00:13]} c3 {[%emt 0:00:05]} 59. Ke2 {[%emt 0:02:48]} Kc4 {[%emt 0:00:11]} 60. Bf8 {[%emt 0:01:07]} Bf6 {[%emt 0:00:37]} 61. Be7 {[%emt 0:02:46]} Bg7 {[%emt 0:00:06]} 62. Bd6 {[%emt 0:00:57]} Kb3 {[%emt 0:00:25]} 63. Kd3 {[%emt 0:00:26]} a3 {[%emt 0:00:17]} 64. Bxa3 {[%emt 0:00:09]} Kxa3 {[%emt 0:00:06]} 65. Kc2 {[%emt 0:00:17]} Kb4 {[%emt 0:00:06]} 66. Kd3 {[%emt 0:00:25]} 0-1

[Event "4NCL 2019-20"]
[Site "Daventry"]
[Date "2020.02.09"]
[Round "6"]
[White "Reimanis, Ritvars"]
[Black "Macklin, Paul"]
[Result "1-0"]
[ECO "E94"]
[WhiteElo "2370"]
[BlackElo "2341"]
[Annotator "ChessBase"]
[PlyCount "71"]
[EventDate "2020.01.11"]
[EventCountry "ENG"]
[SourceTitle "playchess.com"]
[Source "ChessBase"]
[SourceQuality "1"]
[TimeControl "40/6000:3000+30"]

1. d4 {[%emt 0:00:00]} Nf6 {[%emt 0:00:00]} 2. c4 {[%emt 0:00:00]} g6 {[%emt 0:00:00]} 3. Nc3 {[%emt 0:00:00]} Bg7 {[%emt 0:00:00]} 4. e4 {[%emt 0:00:00]} d6 {[%emt 0:00:00]} 5. Be2 {[%emt 0:00:00]} O-O {[%emt 0:00:00]} 6. Nf3 {[%emt 0:00:00]} Na6 {[%emt 0:03:41]} 7. O-O {[%emt 0:00:00]} e5 {[%emt 0:00:00]} 8. Be3 {[%emt 0:00:00]} c6 {[%emt 0:00:00]} 9. d5 {[%emt 0:00:00]} Ng4 {[%emt 0:01:30]} 10. Bg5 {[%emt 0:00:00]} f6 {[%emt 0:00:00]} 11. Bh4 {[%emt 0:00:00]} c5 {[%emt 0:00:17]} 12. Ne1 {[%emt 0:00:00]} Nh6 {[%emt 0:00:48]} 13. Nd3 {[%emt 0:05:55]} Nf7 {[%emt 0:03:59]} 14. a3 {[%emt 0:02:02]} b6 {[%emt 0:02:42]} 15. b4 {[%emt 0:03:54]} Bh6 {[%emt 0:04:22]} 16. bxc5 {[%emt 0:06:45]} bxc5 {[%emt 0:10:41]} 17. Qa4 {[%emt 0:00:33]} Kg7 {[%emt 0:05:34]} 18. Rab1 {[%emt 0:06:08]} Nc7 {[%emt 0:04:42]} 19. Rb2 {[%emt 0:07:21]} Bg5 {[%emt 0:11:28]} 20. Bxg5 {[%emt 0:03:27]} fxg5 {[%emt 0:00:00]} 21. g4 {[%emt 0:05:22]} Nh6 {[%emt 0:06:58]} 22. f3 {[%emt 0:00:42]} Ng8 {[%emt 0:02:43]} 23. Rd1 {[%emt 0:03:29]} Rf6 {[%emt 0:19:17]} 24. Rdb1 {[%emt 0:01:18]} Ba6 {[%emt 0:03:31]} 25. Nc1 {[%emt 0:00:06]} Ne7 {[%emt 0:02:17]} 26. Qa5 {[%emt 0:08:02]} Rf8 {[%emt 0:04:32]} 27. a4 {[%emt 0:02:12]} Nc8 {[%emt 0:05:22]} 28. Rb8 {[%emt 0:01:03]} Rxb8 {[%emt 0:00:00]} 29. Rxb8 {[%emt 0:00:00]} Qd7 {[%emt 0:00:30]} 30. Nb5 {[%emt 0:06:41]} Bxb5 {[%emt 0:01:34]} 31. Rb7 {[%emt 0:00:06]} Rf7 {[%emt 0:00:29]} 32. cxb5 {[%emt 0:04:40]} h5 {[%emt 0:00:00]} 33. h3 {[%emt 0:00:00]} h4 {[%emt 0:01:12]} 34. Nb3 {[%emt 0:05:54]} Kh6 {[%emt 0:00:00]} 35. Nd2 {[%emt 0:00:08]} Qe7 {[%emt 0:01:08]} 36. Kg2 {[%emt 0:00:23]} 1-0

[Event "4NCL 2019-20"]
[Site "Daventry"]
[Date "2020.02.09"]
[Round "6"]
[White "Kilpatrick, Callum"]
[Black "Chapman, Terry P D"]
[Result "1-0"]
[ECO "B10"]
[WhiteElo "2363"]
[BlackElo "2241"]
[Annotator "ChessBase"]
[PlyCount "57"]
[EventDate "2020.01.11"]
[EventCountry "ENG"]
[SourceTitle "playchess.com"]
[Source "ChessBase"]
[SourceQuality "1"]
[TimeControl "40/6000:3000+30"]

1. e4 {[%emt 0:04:20]} c6 {[%emt 0:00:00]} 2. Nf3 {[%emt 0:00:26]} d5 {[%emt 0:00:00]} 3. exd5 {[%emt 0:00:00]} cxd5 {[%emt 0:00:00]} 4. Ne5 {[%emt 0:00:00]} a6 {[%emt 0:19:48]} 5. d4 {[%emt 0:00:02]} g6 {[%emt 0:01:59]} 6. Bd3 {[%emt 0:08:25]} Bg7 {[%emt 0:02:23]} 7. c3 {[%emt 0:00:01]} f6 {[%emt 0:08:17]} 8. Ng4 {[%emt 0:05:05]} e5 {[%emt 0:03:28]} 9. dxe5 {[%emt 0:01:39]} fxe5 {[%emt 0:00:00]} 10. O-O {[%emt 0:00:44]} Qh4 {[%emt 0:05:17]} 11. Be2 {[%emt 0:14:23]} Be6 {[%emt 0:05:16]} 12. f4 {[%emt 0:13:36]} e4 {[%emt 0:09:31]} 13. Be3 {[%emt 0:10:08]} Nc6 {[%emt 0:00:44]} 14. Nd2 {[%emt 0:07:34]} h5 {[%emt 0:02:44]} 15. Bf2 {[%emt 0:01:47]} Qe7 {[%emt 0:00:40]} 16. Ne3 {[%emt 0:00:00]} Nh6 {[%emt 0:05:47]} 17. Nb3 {[%emt 0:05:44]} O-O-O {[%emt 0:00:31]} 18. Qe1 {[%emt 0:07:55]} g5 {[%emt 0:03:38]} 19. fxg5 {[%emt 0:00:00]} Qxg5 {[%emt 0:00:00]} 20. Nc5 {[%emt 0:00:00]} Rde8 {[%emt 0:03:56]} 21. Qd1 {[%emt 0:02:40]} Bf7 {[%emt 0:09:38]} 22. Qa4 {[%emt 0:05:10]} d4 {[%emt 0:01:47]} 23. cxd4 {[%emt 0:00:40]} Bxd4 {[%emt 0:05:42]} 24. Nxb7 {[%emt 0:00:00]} Kxb7 {[%emt 0:02:02]} 25. Bxa6+ {[%emt 0:00:00]} Kb6 {[%emt 0:01:16]} 26. Rac1 {[%emt 0:00:00]} Rc8 {[%emt 0:02:52]} 27. Bxc8 {[%emt 0:00:52]} Rxc8 {[%emt 0:00:00]} 28. Rxc6+ {[%emt 0:00:00]} Rxc6 {[%emt 0:00:00]} 29. Qxd4+ {[%emt 0:00:00]} 1-0

[Event "4NCL 2019-20"]
[Site "Daventry"]
[Date "2020.02.09"]
[Round "6"]
[White "Taylor, Adam C"]
[Black "Hebden, Mark L"]
[Result "0-1"]
[ECO "E70"]
[WhiteElo "2361"]
[BlackElo "2434"]
[Annotator "ChessBase"]
[PlyCount "78"]
[EventDate "2020.01.11"]
[EventCountry "ENG"]
[SourceTitle "playchess.com"]
[Source "ChessBase"]
[SourceQuality "1"]
[TimeControl "40/6000:3000+30"]

1. d4 {[%emt 0:00:00]} Nf6 {[%emt 0:00:00]} 2. c4 {[%emt 0:00:00]} g6 {[%emt 0:00:00]} 3. Nc3 {[%emt 0:00:00]} Bg7 {[%emt 0:00:00]} 4. e4 {[%emt 0:00:00]} d6 {[%emt 0:00:00]} 5. Nge2 {[%emt 0:00:00]} e5 {[%emt 0:01:00]} 6. d5 {[%emt 0:00:00]} a5 {[%emt 0:02:02]} 7. f3 {[%emt 0:03:09]} Na6 {[%emt 0:06:19]} 8. Be3 {[%emt 0:00:28]} Nc5 {[%emt 0:00:08]} 9. h4 {[%emt 0:12:58]} h5 {[%emt 0:01:53]} 10. Qd2 {[%emt 0:03:51]} Ng8 {[%emt 0:02:45]} 11. Bxc5 {[%emt 0:12:23]} dxc5 {[%emt 0:00:00]} 12. Rd1 {[%emt 0:00:00]} Nf6 {[%emt 0:09:49]} 13. Nb5 {[%emt 0:01:50]} O-O {[%emt 0:01:01]} 14. d6 {[%emt 0:02:07]} c6 {[%emt 0:01:36]} 15. Nc7 {[%emt 0:00:45]} Ra7 {[%emt 0:00:01]} 16. g3 {[%emt 0:07:06]} b6 {[%emt 0:01:15]} 17. Qg5 {[%emt 0:12:45]} Nh7 {[%emt 0:11:58]} 18. Qe3 {[%emt 0:00:39]} Qf6 {[%emt 0:01:58]} 19. Qb3 {[%emt 0:14:25]} Rb7 {[%emt 0:00:03]} 20. Kf2 {[%emt 0:00:00]} Qd8 {[%emt 0:06:39]} 21. Nc3 {[%emt 0:05:12]} Bd7 {[%emt 0:03:24]} 22. Na4 {[%emt 0:05:38]} Qb8 {[%emt 0:00:59]} 23. Bg2 {[%emt 0:05:30]} Rd8 {[%emt 0:05:17]} 24. Rd3 {[%emt 0:00:00]} Qa7 {[%emt 0:00:37]} 25. Nc3 {[%emt 0:04:10]} b5 {[%emt 0:02:48]} 26. Rd2 {[%emt 0:02:39]} Bh6 {[%emt 0:00:31]} 27. Re2 {[%emt 0:00:00]} Nf8 {[%emt 0:01:20]} 28. a4 {[%emt 0:02:43]} b4 {[%emt 0:00:15]} 29. Nb1 {[%emt 0:00:00]} Ne6 {[%emt 0:00:00]} 30. Nxe6 {[%emt 0:00:00]} Bxe6 {[%emt 0:00:00]} 31. Rd1 {[%emt 0:00:16]} Rbd7 {[%emt 0:00:00]} 32. f4 {[%emt 0:00:00]} Rxd6 {[%emt 0:00:07]} 33. Rxd6 {[%emt 0:00:00]} Rxd6 {[%emt 0:00:00]} 34. f5 {[%emt 0:00:00]} Bc8 {[%emt 0:00:00]} 35. Qf3 {[%emt 0:00:00]} Qd7 {[%emt 0:00:00]} 36. Bh3 {[%emt 0:00:47]} Rd3 {[%emt 0:00:00]} 37. Qh1 {[%emt 0:00:00]} Qd4+ {[%emt 0:00:22]} 38. Kg2 {[%emt 0:00:00]} Rd1 {[%emt 0:01:32]} 39. Re1 {[%emt 0:00:00]} Qxb2+ {[%emt 0:00:02]} 0-1

[Event "4NCL 2019-20"]
[Site "Daventry"]
[Date "2020.02.09"]
[Round "6"]
[White "Ledger, Andrew J"]
[Black "Wall, Gavin"]
[Result "0-1"]
[ECO "C41"]
[WhiteElo "2347"]
[BlackElo "2324"]
[Annotator "ChessBase"]
[PlyCount "98"]
[EventDate "2020.01.11"]
[EventCountry "ENG"]
[SourceTitle "playchess.com"]
[Source "ChessBase"]
[SourceQuality "1"]
[TimeControl "40/6000:3000+30"]

1. e4 {[%emt 0:00:00]} e5 {[%emt 0:49:05]} 2. Nf3 {[%emt 0:00:00]} d6 {[%emt 0:00:00]} 3. d4 {[%emt 0:00:00]} exd4 {[%emt 0:00:00]} 4. Nxd4 {[%emt 0:00:00]} Nf6 {[%emt 0:00:00]} 5. Nc3 {[%emt 0:00:00]} Be7 {[%emt 0:00:00]} 6. g3 {[%emt 0:00:00]} O-O {[%emt 0:00:00]} 7. Bg2 {[%emt 0:00:00]} Re8 {[%emt 0:00:00]} 8. O-O {[%emt 0:00:00]} Bf8 {[%emt 0:00:00]} 9. h3 {[%emt 0:00:00]} c6 {[%emt 0:00:00]} 10. a4 {[%emt 0:00:30]} Na6 {[%emt 0:00:00]} 11. Re1 {[%emt 0:01:37]} Nb4 {[%emt 0:00:00]} 12. Bf4 {[%emt 0:03:12]} h6 {[%emt 0:03:32]} 13. g4 {[%emt 0:06:35]} d5 {[%emt 0:01:32]} 14. e5 {[%emt 0:01:04]} Nh7 {[%emt 0:02:55]} 15. Qd2 {[%emt 0:08:47]} a5 {[%emt 0:04:34]} 16. Rad1 {[%emt 0:05:28]} f6 {[%emt 0:04:52]} 17. exf6 {[%emt 0:11:04]} Nxf6 {[%emt 0:00:00]} 18. Rxe8 {[%emt 0:08:30]} Qxe8 {[%emt 0:00:00]} 19. Re1 {[%emt 0:05:41]} Qg6 {[%emt 0:00:25]} 20. Re2 {[%emt 0:06:43]} Bc5 {[%emt 0:11:20]} 21. Nf3 {[%emt 0:04:51]} Qf7 {[%emt 0:07:45]} 22. Ne5 {[%emt 0:02:01]} Qf8 {[%emt 0:00:00]} 23. Bg3 {[%emt 0:03:00]} Bd7 {[%emt 0:01:32]} 24. Nd1 {[%emt 0:11:24]} Re8 {[%emt 0:01:28]} 25. c3 {[%emt 0:00:00]} Na6 {[%emt 0:00:00]} 26. Nxd7 {[%emt 0:04:53]} Nxd7 {[%emt 0:00:00]} 27. Ne3 {[%emt 0:00:16]} Bxe3 {[%emt 0:01:15]} 28. Rxe3 {[%emt 0:00:00]} Ndc5 {[%emt 0:03:46]} 29. Bd6 {[%emt 0:05:07]} Qf7 {[%emt 0:00:00]} 30. c4 {[%emt 0:00:14]} Ne4 {[%emt 0:00:47]} 31. Bxe4 {[%emt 0:00:00]} dxe4 {[%emt 0:00:00]} 32. Qxa5 {[%emt 0:01:41]} Qxc4 {[%emt 0:00:00]} 33. Qh5 {[%emt 0:01:41]} Re6 {[%emt 0:00:00]} 34. Ba3 {[%emt 0:00:32]} Qxa4 {[%emt 0:00:00]} 35. Qf5 {[%emt 0:00:10]} Qd1+ {[%emt 0:00:00]} 36. Kg2 {[%emt 0:00:00]} Qd5 {[%emt 0:00:00]} 37. Qf8+ {[%emt 0:00:00]} Kh7 {[%emt 0:00:00]} 38. Qf4 {[%emt 0:00:47]} c5 {[%emt 0:00:00]} 39. b3 {[%emt 0:00:14]} Re7 {[%emt 0:00:00]} 40. Kg3 {[%emt 0:00:38]} Nc7 {[%emt 0:00:32]} 41. Bb2 {[%emt 0:05:48]} Kg8 {[%emt 0:05:17]} 42. h4 {[%emt 0:09:48]} Qd1 {[%emt 0:02:34]} 43. g5 {[%emt 0:05:45]} Nd5 {[%emt 0:03:56]} 44. Qb8+ {[%emt 0:03:08]} Kh7 {[%emt 0:00:02]} 45. Qd6 {[%emt 0:06:16]} Qg1+ {[%emt 0:01:02]} 46. Kh3 {[%emt 0:00:00]} Nxe3 {[%emt 0:00:17]} 47. fxe3 {[%emt 0:00:21]} hxg5 {[%emt 0:00:35]} 48. h5 {[%emt 0:00:26]} Qxe3+ {[%emt 0:00:38]} 49. Kg2 {[%emt 0:00:06]} Rf7 {[%emt 0:00:12]} 0-1

[Event "4NCL 2019-20"]
[Site "Daventry"]
[Date "2020.02.09"]
[Round "6"]
[White "Chow, Samuel"]
[Black "Taylor, Martin R"]
[Result "1/2-1/2"]
[ECO "A21"]
[WhiteElo "2317"]
[BlackElo "2345"]
[Annotator "ChessBase"]
[PlyCount "34"]
[EventDate "2020.01.11"]
[EventCountry "ENG"]
[SourceTitle "playchess.com"]
[Source "ChessBase"]
[SourceQuality "1"]
[TimeControl "40/6000:3000+30"]

1. c4 {[%emt 0:00:00]} f5 {[%emt 0:00:00]} 2. g3 {[%emt 0:01:59]} Nf6 {[%emt 0:00:00]} 3. Bg2 {[%emt 0:00:41]} g6 {[%emt 0:00:00]} 4. Nc3 {[%emt 0:00:47]} Bg7 {[%emt 0:00:00]} 5. d3 {[%emt 0:14:59]} d6 {[%emt 0:00:00]} 6. e4 {[%emt 0:00:33]} e5 {[%emt 0:14:11]} 7. Nge2 {[%emt 0:00:00]} O-O {[%emt 0:00:00]} 8. O-O {[%emt 0:01:18]} f4 {[%emt 0:01:44]} 9. gxf4 {[%emt 0:10:47]} Nh5 {[%emt 0:00:09]} 10. f5 {[%emt 0:01:18]} Qh4 {[%emt 0:18:16]} 11. Nd5 {[%emt 0:11:49]} Na6 {[%emt 0:03:10]} 12. fxg6 {[%emt 0:05:21]} hxg6 {[%emt 0:15:28]} 13. f3 {[%emt 0:00:58]} c6 {[%emt 0:00:59]} 14. Ndc3 {[%emt 0:00:12]} Nf4 {[%emt 0:17:01]} 15. Nxf4 {[%emt 0:08:29]} exf4 {[%emt 0:00:00]} 16. Ne2 {[%emt 0:00:02]} g5 {[%emt 0:03:16]} 17. Rb1 {[%emt 0:02:02]} Rf6 {[%emt 0:07:44]} 1/2-1/2

[Event "4NCL 2019-20"]
[Site "Daventry"]
[Date "2020.02.09"]
[Round "6"]
[White "Bisby, Daniel L"]
[Black "Gordon, Stephen J"]
[Result "0-1"]
[ECO "B52"]
[WhiteElo "2314"]
[BlackElo "2504"]
[Annotator "ChessBase"]
[PlyCount "50"]
[EventDate "2020.01.11"]
[EventCountry "ENG"]
[SourceTitle "playchess.com"]
[Source "ChessBase"]
[SourceQuality "1"]
[TimeControl "40/6000:3000+30"]

1. e4 {[%emt 0:02:00]} c5 {[%emt 0:00:00]} 2. Nf3 {[%emt 0:00:09]} d6 {[%emt 0:00:00]} 3. Bb5+ {[%emt 0:00:48]} Bd7 {[%emt 0:01:04]} 4. Bxd7+ {[%emt 0:00:49]} Qxd7 {[%emt 0:00:00]} 5. O-O {[%emt 0:00:00]} Nf6 {[%emt 0:00:00]} 6. Qe2 {[%emt 0:02:57]} Nc6 {[%emt 0:00:00]} 7. c3 {[%emt 0:00:16]} e6 {[%emt 0:00:00]} 8. d4 {[%emt 0:00:00]} cxd4 {[%emt 0:00:04]} 9. cxd4 {[%emt 0:00:00]} d5 {[%emt 0:00:00]} 10. e5 {[%emt 0:00:00]} Ng8 {[%emt 0:01:07]} 11. Nc3 {[%emt 0:00:27]} Nge7 {[%emt 0:00:03]} 12. Rd1 {[%emt 0:03:12]} Nf5 {[%emt 0:02:20]} 13. Bf4 {[%emt 0:16:14]} Be7 {[%emt 0:04:06]} 14. g4 {[%emt 0:04:53]} Nh4 {[%emt 0:10:13]} 15. Nxh4 {[%emt 0:04:49]} Bxh4 {[%emt 0:00:00]} 16. Rd3 {[%emt 0:06:06]} f6 {[%emt 0:13:33]} 17. exf6 {[%emt 0:10:14]} Bxf6 {[%emt 0:00:00]} 18. g5 {[%emt 0:00:59]} Bxd4 {[%emt 0:04:59]} 19. Rad1 {[%emt 0:08:21]} Bxc3 {[%emt 0:06:15]} 20. Rxd5 {[%emt 0:00:00]} Qf7 {[%emt 0:00:31]} 21. Rd7 {[%emt 0:00:19]} Qxf4 {[%emt 0:10:41]} 22. Qxe6+ {[%emt 0:00:00]} Kf8 {[%emt 0:00:00]} 23. bxc3 {[%emt 0:01:30]} Re8 {[%emt 0:06:36]} 24. Qd5 {[%emt 0:00:44]} Re5 {[%emt 0:21:51]} 25. Qd6+ {[%emt 0:06:33]} Ke8 {[%emt 0:01:18]} 0-1

[Event "4NCL 2019-20"]
[Site "Daventry"]
[Date "2020.02.09"]
[Round "6"]
[White "Li, Henry"]
[Black "Ansell, Simon T"]
[Result "1/2-1/2"]
[ECO "C60"]
[WhiteElo "2310"]
[BlackElo "2334"]
[Annotator "NA"]
[PlyCount "25"]
[EventDate "2020.01.11"]
[EventCountry "ENG"]
[SourceTitle "playchess.com"]
[Source "ChessBase"]
[SourceQuality "1"]
[TimeControl "40/6000:3000+30"]

1. e4 {[%emt 0:00:00]} e5 {[%emt 0:00:00]} 2. Nf3 {[%emt 0:00:00]} Nc6 {[%emt 0:00:00]} 3. Bb5 {[%emt 0:00:00]} g6 {[%emt 0:00:00]} 4. d4 {[%emt 0:07:44]} exd4 {[%emt 0:00:00]} 5. Bg5 {[%emt 0:00:00]} Be7 {[%emt 0:00:00]} 6. Bxe7 {[%emt 0:00:00]} Qxe7 {[%emt 0:00:00]} 7. Bxc6 {[%emt 0:00:08]} dxc6 {[%emt 0:00:00]} 8. Qxd4 {[%emt 0:00:00]} Nf6 {[%emt 0:00:00]} 9. O-O {[%emt 0:00:25]} O-O {[%emt 0:01:21]} 10. e5 {[%emt 0:12:21]} Nd5 {[%emt 0:00:55]} 11. Nbd2 {[%emt 0:19:30]} Bf5 {[%emt 0:09:20]} 12. Ne4 {[%emt 0:19:16]} f6 {[%emt 0:12:04]} 13. Nxf6+ {[%emt 0:09:23]} 1/2-1/2